fUSD/lending_fUSD_20250104
["ID","MTS","AMOUNT","RATE_DAILY","PERIOD"]
[347634850,1735995044045,-19342.71726572,0.00010978,2]
[347634851,1735995044054,-1579.66495583,0.00010979,2]
[347634852,1735995044064,-8496.31467184,0.00010979,2]
[347634853,1735995044074,-19342.71726572,0.0001098,2]
[347634854,1735995044083,-3903.49394229,0.0001098,2]
[347634855,1735995044093,-200.0,0.00010981,2]
[347634856,1735995044103,-5630.73725749,0.00010981,2]
[347634857,1735995044112,-247.24869269,0.00010982,2]
[347634858,1735995044122,-67325.80255154,0.00010983,2]
[347634859,1735995044131,-400.0,0.00010986,2]
[347634860,1735995044141,-3903.49394229,0.00010986,2]
[347634861,1735995044150,-5630.73725749,0.00010986,2]
[347634862,1735995044160,-3903.49394229,0.00010987,2]
[347634863,1735995044169,-3903.49394229,0.00010987,2]
[347634864,1735995044178,-5630.73725749,0.00010988,2]
[347634865,1735995044188,-5630.73725749,0.00010988,2]
[347634866,1735995044197,-3903.49394229,0.00010988,2]
[347634867,1735995044207,-3903.49394229,0.00010988,2]
[347634868,1735995044217,-19342.71726572,0.00010989,2]
[347634869,1735995044226,-19342.71726572,0.00010989,2]
[347634870,1735995044236,-1579.66495583,0.00010989,2]
[347634871,1735995044246,-247.24869269,0.00010991,2]
[347634872,1735995044258,-5630.73725749,0.00010992,2]
[347634873,1735995044267,-19342.71726572,0.00010992,2]
[347634874,1735995044277,-8496.31467184,0.00010992,2]
[347634875,1735995044286,-5630.73725749,0.00010993,2]
[347634876,1735995044295,-67325.80255154,0.00010995,2]
[347634877,1735995044304,-200.0,0.00010997,2]
[347634878,1735995044314,-19342.71726572,0.00010997,2]
[347634879,1735995044323,-8496.31467184,0.00010998,2]
[347634880,1735995044334,-1000.0,0.00010999,2]
[347634881,1735995044344,-1000.0,0.00010999,2]
[347634882,1735995044353,-247.24869269,0.00011,2]
[347634883,1735995044362,-550.0,0.00011,2]
[347634884,1735995044371,-150.0,0.00011,2]
[347634885,1735995044381,-150.0,0.00011,2]
[347634886,1735995044392,-859.77663461,0.00011017,2]
[347634887,1735995044401,-150.0,0.00011038,2]
[347634888,1735995044416,-150.0,0.0001104,2]
[347634889,1735995044426,-3000.0,0.0001106,2]
[347634890,1735995044435,-711.16,0.00011083,2]
[347634891,1735995044444,-664.03,0.00011083,2]
[347634892,1735995044453,-399.53329146,0.00011083,2]
[347634893,1735995044463,-548.88,0.00011083,2]
[347634894,1735995044472,-545.08,0.00011083,2]
[347634895,1735995044481,-500.0,0.00011083,2]
[347634896,1735995044490,-516.77034526,0.00011083,2]
[347634897,1735995044500,-525.9,0.00011083,2]
[347634898,1735995044509,-526.61,0.00011083,2]
[347634899,1735995044519,-500.0,0.00011083,2]
[347634900,1735995044528,-500.0,0.00011083,2]
[347634901,1735995044537,-500.0,0.00011083,2]
[347634902,1735995044546,-500.0,0.00011083,2]
[347634903,1735995044556,-500.0,0.00011083,2]
[347634904,1735995044565,-500.0,0.00011083,2]
[347634905,1735995044574,-584.16,0.00011083,2]
[347634906,1735995044585,-333.56,0.00011083,2]
[347634907,1735995044594,-500.0,0.00011083,2]
[347634908,1735995044603,-500.0,0.00011083,2]
[347634909,1735995044612,-500.0,0.00011083,2]
[347634910,1735995044621,-500.0,0.00011083,2]
[347634911,1735995044631,-500.0,0.00011083,2]
[347634912,1735995044640,-901.34,0.00011083,2]
[347634913,1735995044650,-500.0,0.00011083,2]
[347634914,1735995044660,-500.0,0.00011083,2]
[347634915,1735995044669,-1646.33,0.00011083,2]
[347634916,1735995044679,-2159.19,0.00011083,2]
[347634917,1735995044688,-500.0,0.00011083,2]
[347634918,1735995044698,-150.0,0.00011094,2]
[347634919,1735995044707,-500.0,0.00011095,2]
[347634920,1735995044716,-746.07,0.00011095,2]
[347634921,1735995044727,-500.0,0.00011095,2]
[347634922,1735995044736,-1333.82,0.00011095,2]
[347634923,1735995044746,-643.17086007,0.00011095,2]
[347634924,1735995044755,-500.0,0.00011095,2]
[347634925,1735995044764,-500.0,0.00011095,2]
[347634926,1735995044774,-500.0,0.00011095,2]
[347634927,1735995044783,-500.0,0.00011095,2]
[347634928,1735995044793,-538.6,0.00011095,2]
[347634929,1735995044843,-500.0,0.00011095,2]
[347634930,1735995044854,-585.68,0.00011095,2]
[347634931,1735995044863,-500.0,0.00011095,2]
[347634932,1735995044873,-1124.81,0.00011095,2]
[347634933,1735995044882,-445.70520523,0.00011095,2]
[347634934,1735995044892,-500.0,0.00011095,2]
[347634935,1735995044901,-1330.16,0.00011095,2]
[347634936,1735995044910,-500.0,0.00011095,2]
[347634937,1735995044919,-500.0,0.00011095,2]
[347634938,1735995044929,-500.0,0.00011095,2]
[347634939,1735995044938,-1079.6,0.00011095,2]
[347634940,1735995044947,-500.0,0.00011095,2]
[347634941,1735995044956,-150.0,0.000111,2]
[347634942,1735995044965,-150.0,0.00011104,2]
[347634943,1735995044974,-205.0,0.0001115,2]
[347634944,1735995044984,-265.0,0.0001115,2]
[347634945,1735995044994,-398.0,0.0001115,2]
[347634946,1735995045003,-859.77663461,0.00011152,2]
[347634947,1735995045012,-150.0,0.00011174,2]
[347634948,1735995045022,-1500.0,0.00011175,2]
[347634949,1735995045032,-428.22370332,0.00011193,2]
[347634950,1735995045041,-150.0,0.000112,2]
[347634951,1735995045051,-150.0,0.000112,2]
[347634952,1735995045060,-221.71382995,0.00011213,2]
[347634953,1735995045070,-160.46036717,0.0001123,2]
[347634954,1735995045079,-150.0,0.0001124,2]
[347634955,1735995045089,-150.0,0.00011247,2]
[347634956,1735995045098,-150.0,0.00011249,2]
[347634957,1735995045108,-150.0,0.00011255,2]
[347634958,1735995045117,-150.0,0.00011257,2]
[347634959,1735995045126,-500.0,0.0001126,2]
[347634960,1735995045135,-500.0,0.0001126,2]
[347634961,1735995045145,-500.0,0.0001126,2]
[347634962,1735995045154,-500.0,0.0001126,2]
[347634963,1735995045164,-500.0,0.0001126,2]
[347634964,1735995045173,-500.0,0.0001126,2]
[347634965,1735995045182,-500.0,0.0001126,2]
[347634966,1735995045191,-500.0,0.0001126,2]
[347634967,1735995045200,-500.0,0.0001126,2]
[347634968,1735995045209,-500.0,0.0001126,2]
[347634969,1735995045220,-500.0,0.0001126,2]
[347634970,1735995045229,-500.0,0.0001126,2]
[347634971,1735995045239,-500.0,0.0001126,2]
[347634972,1735995045251,-500.0,0.0001126,2]
[347634973,1735995045260,-500.0,0.0001126,2]
[347634974,1735995045270,-500.0,0.0001126,2]
[347634975,1735995045279,-500.0,0.0001126,2]
[347634976,1735995045289,-500.0,0.0001126,2]
[347634977,1735995045298,-500.0,0.0001126,2]
[347634978,1735995045307,-500.0,0.0001126,2]
[347634979,1735995045317,-150.0,0.00011269,2]
[347634980,1735995045326,-150.0,0.0001128,2]
[347634981,1735995045335,-1500.0,0.00011281,2]
[347634982,1735995045345,-859.77663461,0.00011286,2]
[347634983,1735995045354,-250.0,0.00011298,2]
[347634984,1735995045364,-201.0,0.00011299,2]
[347634985,1735995045373,-150.0,0.000113,2]
[347634986,1735995045383,-150.0,0.00011303,2]
[347634987,1735995045393,-182.0,0.00011328,2]
[347634988,1735995045403,-164.52,0.00011328,2]
[347634989,1735995045412,-205.0,0.0001133,2]
[347634990,1735995045422,-265.0,0.0001133,2]
[347634991,1735995045431,-398.0,0.0001133,2]
[347634992,1735995045440,-615.90196525,0.0001135,2]
[347634993,1735995045450,-150.0,0.00011355,2]
[347634994,1735995045459,-711.16,0.00011357,2]
[347634995,1735995045469,-664.03,0.00011357,2]
[347634996,1735995045479,-548.88,0.00011357,2]
[347634997,1735995045488,-545.08,0.00011357,2]
[347634998,1735995045497,-193.11446952,0.00011357,2]
[347634999,1735995045507,-525.9,0.00011357,2]
[347635000,1735995045516,-526.61,0.00011357,2]
[347635001,1735995045525,-500.0,0.00011357,2]
[347635002,1735995045535,-500.0,0.00011357,2]
[347635003,1735995045545,-500.0,0.00011357,2]
[347635004,1735995045555,-500.0,0.00011357,2]
[347635005,1735995045564,-500.0,0.00011357,2]
[347635006,1735995045574,-500.0,0.00011357,2]
[347635007,1735995045583,-584.16,0.00011357,2]
[347635008,1735995045593,-500.0,0.00011357,2]
[347635009,1735995045603,-500.0,0.00011357,2]
[347635010,1735995045614,-355.31087618,0.00011357,2]
[347635011,1735995045623,-419.41647403,0.00011357,2]
[347635012,1735995045633,-500.0,0.00011357,2]
[347635013,1735995045642,-901.34,0.00011357,2]
[347635014,1735995045651,-500.0,0.00011357,2]
[347635015,1735995045662,-500.0,0.00011357,2]
[347635016,1735995045671,-1646.33,0.00011357,2]
[347635017,1735995045682,-2159.19,0.00011357,2]
[347635018,1735995045691,-500.0,0.00011357,2]
[347635019,1735995045700,-150.0,0.00011358,2]
[347635020,1735995045710,-150.0,0.00011361,2]
[347635021,1735995045719,-500.0,0.00011369,2]
[347635022,1735995045728,-746.07,0.00011369,2]
[347635023,1735995045737,-500.0,0.00011369,2]
[347635024,1735995045746,-1333.82,0.00011369,2]
[347635025,1735995045756,-500.0,0.00011369,2]
[347635026,1735995045765,-354.78987512,0.00011369,2]
[347635027,1735995045774,-500.0,0.00011369,2]
[347635028,1735995045783,-500.0,0.00011369,2]
[347635029,1735995045792,-538.6,0.00011369,2]
[347635030,1735995045801,-500.0,0.00011369,2]
[347635031,1735995045811,-585.68,0.00011369,2]
[347635032,1735995045819,-500.0,0.00011369,2]
[347635033,1735995045829,-1124.81,0.00011369,2]
[347635034,1735995045838,-500.0,0.00011369,2]
[347635035,1735995045847,-1330.16,0.00011369,2]
[347635036,1735995045856,-500.0,0.00011369,2]
[347635037,1735995045865,-500.0,0.00011369,2]
[347635038,1735995045874,-1079.6,0.00011369,2]
[347635039,1735995045883,-350.72719058,0.00011369,2]
[347635040,1735995045895,-3000.0,0.0001138,2]
[347635041,1735995045903,-150.0,0.00011385,2]
[347635042,1735995045913,-150.0,0.000114,2]
[347635043,1735995045922,-150.0,0.000114,2]
[347635044,1735995045931,-428.22370335,0.00011405,2]
[347635045,1735995045940,-150.0,0.00011418,2]
[347635046,1735995045948,-859.77663461,0.00011421,2]
[347635047,1735995045959,-150.0,0.00011452,2]
[347635048,1735995045968,-1500.0,0.00011461,2]
[347635049,1735995045977,-150.0,0.00011468,2]
[347635050,1735995045988,-150.0,0.00011478,2]
[347635051,1735995045997,-150.0,0.00011479,2]
[347635052,1735995046008,-150.0,0.00011479,2]
[347635053,1735995046019,-150.0,0.00011479,2]
[347635055,1735995046028,-150.0,0.00011487,2]
[347635056,1735995046037,-1500.0,0.00011492,2]
[347635057,1735995046048,-150.0,0.000115,2]
[347635058,1735995046058,-150.0,0.00011504,2]
[347635059,1735995046067,-205.0,0.0001151,2]
[347635061,1735995046076,-202.0,0.0001151,2]
[347635062,1735995046086,-265.0,0.0001151,2]
[347635064,1735995046095,-398.0,0.0001151,2]
[347635065,1735995046104,-150.0,0.0001152,2]
[347635066,1735995046113,-1019.772,0.00011528,2]
[347635067,1735995046122,-150.0,0.00011541,2]
[347635068,1735995046132,-221.71382995,0.00011542,2]
[347635069,1735995046141,-150.0,0.00011553,2]
[347635070,1735995046151,-859.77663461,0.00011555,2]
[347635071,1735995046160,-1500.0,0.0001158,2]
[347635072,1735995046170,-150.0,0.00011587,2]
[347635073,1735995046179,-150.0,0.00011596,2]
[347635074,1735995046188,-150.0,0.00011599,2]
[347635075,1735995046197,-150.0,0.000116,2]
[347635076,1735995046206,-150.0,0.000116,2]
[347635077,1735995046217,-150.0,0.00011611,2]
[347635078,1735995046226,-500.0,0.00011624,2]
[347635079,1735995046235,-1200.0,0.00011624,2]
[347635080,1735995046248,-150.0,0.00011629,2]
[347635081,1735995046259,-711.16,0.00011631,2]
[347635082,1735995046270,-664.03,0.00011631,2]
[347635083,1735995046281,-548.88,0.00011631,2]
[347635084,1735995046291,-545.08,0.00011631,2]
[347635085,1735995046300,-525.9,0.00011631,2]
[347635086,1735995046309,-526.61,0.00011631,2]
[347635087,1735995046319,-500.0,0.00011631,2]
[347635088,1735995046330,-500.0,0.00011631,2]
[347635089,1735995046339,-500.0,0.00011631,2]
[347635090,1735995046348,-500.0,0.00011631,2]
[347635091,1735995046357,-500.0,0.00011631,2]
[347635092,1735995046366,-500.0,0.00011631,2]
[347635093,1735995046375,-584.16,0.00011631,2]
[347635094,1735995046384,-500.0,0.00011631,2]
[347635095,1735995046394,-500.0,0.00011631,2]
[347635096,1735995046403,-500.0,0.00011631,2]
[347635097,1735995046412,-901.34,0.00011631,2]
[347635098,1735995046422,-500.0,0.00011631,2]
[347635099,1735995046431,-500.0,0.00011631,2]
[347635100,1735995046441,-1646.33,0.00011631,2]
[347635101,1735995046451,-2159.19,0.00011631,2]
[347635102,1735995046460,-500.0,0.00011631,2]
[347635103,1735995046470,-500.0,0.00011643,2]
[347635104,1735995046479,-746.07,0.00011643,2]
[347635105,1735995046488,-237.1937809,0.00011643,2]
[347635106,1735995046497,-1333.82,0.00011643,2]
[347635107,1735995046506,-500.0,0.00011643,2]
[347635108,1735995046515,-500.0,0.00011643,2]
[347635109,1735995046524,-500.0,0.00011643,2]
[347635110,1735995046533,-538.6,0.00011643,2]
[347635111,1735995046543,-375.41589689,0.00011643,2]
[347635112,1735995046552,-585.68,0.00011643,2]
[347635113,1735995046561,-500.0,0.00011643,2]
[347635114,1735995046570,-1124.81,0.00011643,2]
[347635115,1735995046579,-500.0,0.00011643,2]
[347635116,1735995046588,-1330.16,0.00011643,2]
[347635117,1735995046598,-500.0,0.00011643,2]
[347635118,1735995046607,-500.0,0.00011643,2]
[347635119,1735995046617,-1079.6,0.00011643,2]
[347635120,1735995046627,-150.0,0.00011648,2]
[347635121,1735995046636,-150.0,0.00011669,2]
[347635122,1735995046646,-150.0,0.00011671,2]
[347635123,1735995046655,-150.0,0.00011671,2]
[347635124,1735995046665,-171.13060337,0.00011679,2]
[347635125,1735995046675,-859.77663461,0.0001169,2]
[347635126,1735995046684,-205.0,0.000117,2]
[347635127,1735995046694,-202.0,0.000117,2]
[347635128,1735995046703,-265.0,0.000117,2]
[347635129,1735995046712,-398.0,0.000117,2]
[347635130,1735995046721,-150.0,0.000117,2]
[347635131,1735995046730,-150.0,0.00011708,2]
[347635132,1735995046740,-150.0,0.0001171,2]
[347635133,1735995046749,-150.0,0.00011716,2]
[347635134,1735995046759,-150.0,0.00011736,2]
[347635135,1735995046768,-150.0,0.00011742,2]
[347635136,1735995046776,-150.0,0.0001176,2]
[347635137,1735995046786,-150.0,0.00011782,2]
[347635138,1735995046795,-200.0,0.000118,2]
[347635139,1735995046804,-726.35,0.000118,4]
[347635140,1735995046813,-1500.0,0.000118,2]
[347635141,1735995046822,-150.0,0.000118,2]
[347635142,1735995046832,-150.0,0.000118,2]
[347635143,1735995046841,-180.498301,0.00011818,2]
[347635144,1735995046851,-859.77663461,0.00011824,2]
[347635145,1735995046860,-150.0,0.00011852,2]
[347635146,1735995046869,-561.37,0.00011856,2]
[347635147,1735995046878,-150.0,0.00011857,2]
[347635148,1735995046887,-150.0,0.00011869,2]
[347635149,1735995046898,-221.71382995,0.00011871,2]
[347635150,1735995046906,-150.0,0.00011874,2]
[347635151,1735995046915,-150.0,0.00011875,2]
[347635152,1735995046925,-150.0,0.00011875,2]
[347635153,1735995046934,-202.0,0.0001188,2]
[347635154,1735995046943,-205.0,0.0001188,2]
[347635155,1735995046953,-265.0,0.0001188,2]
[347635156,1735995046962,-398.0,0.0001188,2]
[347635157,1735995046971,-150.0,0.000119,2]
[347635158,1735995046980,-711.16,0.00011905,2]
[347635159,1735995046990,-664.03,0.00011905,2]
[347635160,1735995046999,-548.88,0.00011905,2]
[347635161,1735995047008,-545.08,0.00011905,2]
[347635162,1735995047019,-525.9,0.00011905,2]
[347635163,1735995047028,-526.61,0.00011905,2]
[347635164,1735995047037,-500.0,0.00011905,2]
[347635165,1735995047047,-500.0,0.00011905,2]
[347635166,1735995047057,-500.0,0.00011905,2]
[347635167,1735995047066,-500.0,0.00011905,2]
[347635168,1735995047076,-500.0,0.00011905,2]
[347635169,1735995047085,-500.0,0.00011905,2]
[347635170,1735995047094,-584.16,0.00011905,2]
[347635171,1735995047104,-500.0,0.00011905,2]
[347635172,1735995047113,-500.0,0.00011905,2]
[347635173,1735995047122,-377.17349735,0.00011905,2]
[347635174,1735995047131,-901.34,0.00011905,2]
[347635175,1735995047141,-500.0,0.00011905,2]
[347635176,1735995047151,-500.0,0.00011905,2]
[347635177,1735995047160,-1646.33,0.00011905,2]
[347635178,1735995047170,-2159.19,0.00011905,2]
[347635179,1735995047180,-1500.0,0.00011909,2]
[347635180,1735995047189,-150.0,0.00011911,2]
[347635181,1735995047198,-500.0,0.00011917,2]
[347635182,1735995047207,-746.07,0.00011917,2]
[347635183,1735995047218,-1333.82,0.00011917,2]
[347635184,1735995047227,-500.0,0.00011917,2]
[347635185,1735995047236,-500.0,0.00011917,2]
[347635186,1735995047246,-500.0,0.00011917,2]
[347635187,1735995047256,-538.6,0.00011917,2]
[347635188,1735995047265,-585.68,0.00011917,2]
[347635189,1735995047275,-1124.81,0.00011917,2]
[347635190,1735995047286,-500.0,0.00011917,2]
[347635191,1735995047295,-500.0,0.00011917,2]
[347635192,1735995047305,-1330.16,0.00011917,2]
[347635193,1735995047314,-500.0,0.00011917,2]
[347635194,1735995047324,-500.0,0.00011917,2]
[347635195,1735995047333,-1079.6,0.00011917,2]
[347635196,1735995047343,-150.0,0.00011919,2]
[347635197,1735995047352,-1500.0,0.00011927,2]
[347635198,1735995047362,-150.0,0.00011934,2]
[347635199,1735995047371,-859.77663461,0.00011959,2]
[347635200,1735995047380,-181.37,0.00011964,2]
[347635201,1735995047390,-150.0,0.00011986,2]
[347635202,1735995047401,-150.0,0.00011998,2]
[347635203,1735995047411,-500.0,0.00011999,2]
[347635204,1735995047421,-9484.77672347,0.00012,2]
[347635205,1735995047431,-21802.83597559,0.00012,2]
[347635206,1735995047440,-501672.5765416,0.00012,2]
[347635207,1735995047450,-151.0,0.00012,2]
[347635208,1735995047460,-151.0,0.00012,2]
[347635209,1735995047469,-151.0,0.00012,2]
[347635210,1735995047479,-151.0,0.00012,2]
[347635211,1735995047488,-150.0,0.00012,2]
[347635212,1735995047497,-150.0,0.00012,2]
[347635213,1735995047507,-150.0,0.00012,2]
[347635214,1735995047516,-250.0,0.00012,2]
[347635215,1735995047526,-250.0,0.00012,2]
[347635216,1735995047535,-250.0,0.00012,2]
[347635217,1735995047545,-250.0,0.00012,2]
[347635218,1735995047555,-250.0,0.00012,2]
[347635219,1735995047565,-250.0,0.00012,2]
[347635220,1735995047574,-250.0,0.00012,2]
[347635221,1735995047584,-250.0,0.00012,2]
[347635222,1735995047593,-250.0,0.00012,2]
[347635223,1735995047603,-250.0,0.00012,2]
[347635224,1735995047613,-250.0,0.00012,2]
[347635225,1735995047623,-250.0,0.00012,2]
[347635226,1735995047633,-150.0,0.00012002,2]
[347635227,1735995047644,-180.498301,0.00012015,2]
[347635228,1735995047654,-1000.0,0.00012025,2]
[347635229,1735995047664,-338.66,0.00012026,2]
[347635230,1735995047674,-500.0,0.0001203,2]
[347635231,1735995047683,-500.0,0.0001203,2]
[347635232,1735995047693,-500.0,0.0001203,2]
[347635233,1735995047703,-500.0,0.0001203,2]
[347635234,1735995047713,-500.0,0.0001203,2]
[347635235,1735995047723,-535.93,0.0001203,2]
[347635236,1735995047732,-500.0,0.0001203,2]
[347635237,1735995047742,-500.0,0.0001203,2]
[347635238,1735995047752,-500.0,0.0001203,2]
[347635239,1735995047761,-500.0,0.0001203,2]
[347635240,1735995047771,-150.0,0.00012054,2]
[347635241,1735995047780,-202.0,0.0001206,2]
[347635242,1735995047789,-205.0,0.0001206,2]
[347635243,1735995047799,-205.0,0.0001206,2]
[347635244,1735995047809,-265.0,0.0001206,2]
[347635245,1735995047819,-398.0,0.0001206,2]
[347635246,1735995047829,-1126.81,0.00012087,2]
[347635247,1735995047838,-29999.99,0.00012087,2]
[347635248,1735995047848,-15136.38,0.00012087,2]
[347635249,1735995047858,-1537.16,0.00012087,2]
[347635250,1735995047868,-859.77663461,0.00012093,2]
[347635251,1735995047878,-150.0,0.00012096,2]
[347635252,1735995047888,-138520.4796554,0.00012096,2]
[347635253,1735995047899,-1242.68876409,0.00012099,3]
[347635254,1735995047908,-150.0,0.00012109,2]
[347635255,1735995047918,-150.0,0.00012125,2]
[347635256,1735995047928,-500.0,0.00012136,2]
[347635257,1735995047938,-150.0,0.00012148,2]
[347635258,1735995047948,-156.397997,0.0001215,2]
[347635259,1735995047957,-150.0,0.0001216,2]
[347635260,1735995047966,-711.16,0.00012179,2]
[347635261,1735995047976,-664.03,0.00012179,2]
[347635262,1735995047985,-548.88,0.00012179,2]
[347635263,1735995047995,-545.08,0.00012179,2]
[347635264,1735995048005,-525.9,0.00012179,2]
[347635265,1735995048015,-526.61,0.00012179,2]
[347635266,1735995048025,-500.0,0.00012179,2]
[347635267,1735995048035,-500.0,0.00012179,2]
[347635268,1735995048044,-500.0,0.00012179,2]
[347635269,1735995048054,-500.0,0.00012179,2]
[347635270,1735995048064,-500.0,0.00012179,2]
[347635271,1735995048074,-500.0,0.00012179,2]
[347635272,1735995048084,-584.16,0.00012179,2]
[347635273,1735995048094,-500.0,0.00012179,2]
[347635274,1735995048104,-500.0,0.00012179,2]
[347635275,1735995048116,-901.34,0.00012179,2]
[347635276,1735995048126,-500.0,0.00012179,2]
[347635277,1735995048135,-500.0,0.00012179,2]
[347635278,1735995048146,-1646.33,0.00012179,2]
[347635279,1735995048156,-2159.19,0.00012179,2]
[347635280,1735995048165,-500.0,0.00012191,2]
[347635281,1735995048175,-746.07,0.00012191,2]
[347635282,1735995048185,-1333.82,0.00012191,2]
[347635283,1735995048195,-500.0,0.00012191,2]
[347635284,1735995048205,-500.0,0.00012191,2]
[347635285,1735995048214,-500.0,0.00012191,2]
[347635286,1735995048224,-538.6,0.00012191,2]
[347635287,1735995048234,-585.68,0.00012191,2]
[347635288,1735995048246,-1124.81,0.00012191,2]
[347635289,1735995048259,-500.0,0.00012191,2]
[347635290,1735995048269,-500.0,0.00012191,2]
[347635291,1735995048279,-1330.16,0.00012191,2]
[347635292,1735995048288,-500.0,0.00012191,2]
[347635293,1735995048299,-500.0,0.00012191,2]
[347635294,1735995048309,-1079.6,0.00012191,2]
[347635295,1735995048319,-150.0,0.00012196,2]
[347635296,1735995048330,-267.33977367,0.00012198,2]
[347635297,1735995048340,-1000000.0,0.000122,2]
[347635298,1735995048350,-1000000.0,0.000122,2]
[347635299,1735995048359,-1000000.0,0.000122,2]
[347635300,1735995048369,-1000000.0,0.000122,2]
[347635301,1735995048379,-1000000.0,0.000122,2]
[347635302,1735995048388,-151.0,0.000122,2]
[347635303,1735995048398,-151.0,0.000122,2]
[347635304,1735995048408,-151.0,0.000122,2]
[347635305,1735995048418,-151.0,0.000122,2]
[347635306,1735995048428,-151.0,0.000122,2]
[347635307,1735995048438,-11757.14219607,0.000122,2]
[347635308,1735995048448,-151.0,0.000122,2]
[347635309,1735995048457,-151.0,0.000122,2]
[347635310,1735995048467,-151.0,0.000122,2]
[347635311,1735995048477,-243.096999,0.000122,2]
[347635312,1735995048487,-151.0,0.000122,2]
[347635313,1735995048497,-151.0,0.000122,2]
[347635314,1735995048507,-151.0,0.000122,2]
[347635315,1735995048516,-151.0,0.000122,2]
[347635316,1735995048526,-151.0,0.000122,2]
[347635317,1735995048536,-151.0,0.000122,2]
[347635318,1735995048546,-151.0,0.000122,2]
[347635319,1735995048556,-232.4571,0.000122,2]
[347635320,1735995048565,-221.71382995,0.000122,2]
[347635321,1735995048575,-180.498301,0.00012212,2]
[347635322,1735995048584,-150.0,0.00012223,2]
[347635323,1735995048595,-156.397997,0.00012225,2]
[347635324,1735995048604,-859.77663461,0.00012228,2]
[347635325,1735995048614,-202.0,0.0001224,2]
[347635326,1735995048624,-205.0,0.0001224,2]
[347635327,1735995048633,-205.0,0.0001224,2]
[347635328,1735995048643,-265.0,0.0001224,2]
[347635329,1735995048653,-398.0,0.0001224,2]
[347635330,1735995048663,-150.0,0.00012258,2]
[347635331,1735995048674,-150.0,0.00012259,2]
[347635332,1735995048684,-182.74,0.00012261,2]
[347635333,1735995048694,-150.52,0.00012261,2]
[347635334,1735995048704,-979.07,0.00012261,2]
[347635335,1735995048713,-150.0,0.00012261,2]
[347635336,1735995048723,-344.74,0.00012261,2]
[347635337,1735995048734,-894.68,0.00012261,2]
[347635338,1735995048743,-303.87,0.00012261,2]
[347635339,1735995048753,-150.0,0.00012261,2]
[347635340,1735995048763,-150.0,0.00012261,2]
[347635341,1735995048773,-979.07,0.00012261,2]
[347635342,1735995048783,-150.0,0.00012261,2]
[347635343,1735995048792,-150.0,0.00012261,2]
[347635344,1735995048802,-150.0,0.00012261,2]
[347635345,1735995048812,-301.5,0.00012261,2]
[347635346,1735995048821,-979.07,0.00012261,2]
[347635347,1735995048831,-150.0,0.00012261,2]
[347635348,1735995048841,-979.07,0.00012261,2]
[347635349,1735995048850,-150.0,0.00012261,2]
[347635350,1735995048860,-150.0,0.00012261,2]
[347635351,1735995048870,-974.21,0.00012261,2]
[347635352,1735995048879,-150.0,0.00012261,2]